bitfinex-derivatives/quotes_ETHF0:USTF0_20250604
["timestamp","ask_amount","ask_price","bid_price","bid_amount"]
[1749056406661,0.88537236,2660.8,2660.7,0.75132]
[1749056409052,0.88537236,2660.8,2660.7,1.96242]
[1749056410061,0.06731476,2660.9,2660.8,0.75129]
[1749056410463,0.95260137,2660.9,2660.8,0.75129]
[1749056411263,0.95260137,2660.9,2660.8,5.29729]
[1749056412152,0.95260137,2660.9,2660.8,6.56889]
[1749056412357,0.95260137,2660.9,2660.8,23.94189]
[1749056414461,0.95278742,2660.9,2660.8,23.94189]
[1749056417671,0.95278742,2660.9,2660.8,6.56889]
[1749056417873,0.95278742,2660.9,2660.8,23.93989]
[1749056418971,0.952609,2660.9,2660.8,23.93989]
[1749056420966,0.952609,2660.9,2660.6,3.2078]
[1749056421169,0.75138,2660.5,2660.4,4.546]
[1749056421366,1.63667424,2660.5,2660.4,4.546]
[1749056421568,1.63667424,2660.5,2660.4,5.2974]
[1749056421871,2.14849424,2660.5,2660.4,5.2974]
[1749056422779,2.14860881,2660.5,2660.4,5.2974]
[1749056423076,0.88540881,2660.5,2660.4,5.2974]
[1749056423575,0.88540881,2660.5,2660.4,12.2093]
[1749056424270,0.88540881,2660.5,2660.4,7.2093]
[1749056424474,0.88540881,2660.5,2660.4,12.2093]
[1749056425364,0.88540881,2660.5,2660.4,7.2093]
[1749056427879,1.2715,2660.8,2660.7,0.75132]
[1749056428170,2.156488,2660.8,2660.7,0.75132]
[1749056428373,0.884988,2660.8,2660.7,0.75132]
[1749056431073,0.884988,2660.8,2660.7,1.95052]
[1749056431985,0.884988,2660.8,2660.7,23.85852]
[1749056432280,0.06731476,2660.9,2660.8,0.75129]
[1749056432881,0.95290716,2660.9,2660.8,0.75129]
[1749056433677,0.95290716,2660.9,2660.8,5.29229]
[1749056434070,0.95290716,2660.9,2660.8,0.75129]
[1749056434370,0.95290716,2660.9,2660.8,5.29229]
[1749056434577,0.8855924,2660.9,2660.8,5.29229]
[1749056436184,0.8855924,2660.9,2660.8,0.75129]
[1749056436386,0.8855924,2660.9,2660.8,5.29229]
[1749056436387,2.1731924,2660.9,2660.8,5.29229]
[1749056436578,2.17276623,2660.9,2660.8,5.29229]
[1749056440284,0.88516623,2660.9,2660.8,5.29229]
[1749056441481,0.00671702,2661.0,2660.9,0.75126]
[1749056441782,0.89185809,2661.0,2660.9,0.75126]
[1749056441982,2.20465809,2661.0,2660.9,0.75126]
[1749056442385,2.20465809,2661.0,2660.8,4.541]
[1749056442688,2.94922107,2660.9,2660.8,5.29226]
[1749056442883,2.19794107,2660.9,2660.8,5.29226]
[1749056443687,2.19794107,2660.9,2660.8,0.75126]
[1749056445593,2.19799256,2660.9,2660.8,0.75126]
[1749056446390,0.88519256,2660.9,2660.8,0.75126]
[1749056448296,2.91865256,2660.9,2660.8,0.75126]
[1749056448495,2.16739256,2660.9,2660.8,0.75126]
[1749056448993,2.91865256,2660.9,2660.8,0.75126]
[1749056449499,2.16739256,2660.9,2660.8,0.75126]
[1749056449697,2.23470732,2660.9,2660.8,0.75126]
[1749056449994,0.9528814,2660.9,2660.8,0.75126]
[1749056450593,1.7041414,2660.9,2660.8,0.75126]
[1749056451493,1.87824,2660.8,2660.3,42.97132]
[1749056451697,0.7514,2660.5,2660.4,5.29237]
[1749056451894,1.63696664,2660.5,2660.4,5.29237]
[1749056453092,1.63696664,2660.5,2660.4,0.75137]
[1749056453693,1.63696664,2660.5,2660.3,8.50021]
[1749056453694,0.7514,2660.4,2660.3,8.50021]
[1749056453892,2.89436664,2660.4,2660.3,8.50021]
[1749056454301,2.14296664,2660.4,2660.3,8.50021]
[1749056454500,2.15267498,2660.4,2660.3,8.50021]
[1749056454808,2.90407498,2660.4,2660.3,8.50021]
[1749056455008,2.15267498,2660.4,2660.3,8.50021]
[1749056455302,0.89527498,2660.4,2660.3,8.50021]
[1749056459013,0.75137,2660.6,2660.5,0.75138]
[1749056459212,1.64596873,2660.6,2660.5,0.75138]
[1749056459608,1.64596873,2660.6,2660.2,2.5324]
[1749056459609,0.89459873,2660.6,2660.2,4.535]
[1749056459811,0.75149,2660.1,2660.0,3.2078]
[1749056460014,1.64608873,2660.1,2660.0,4.535]
[1749056460216,0.7516,2659.7,2659.6,4.54063708]
[1749056460510,1.64619873,2659.7,2659.6,0.00563708]
[1749056460715,1.64619873,2659.7,2659.6,0.75726708]
[1749056461214,2.87289873,2659.7,2659.6,0.75726708]
[1749056461515,2.12129873,2659.7,2659.6,0.75726708]
[1749056461717,0.89459873,2659.7,2659.6,3.96506708]
[1749056461918,0.07674108,2659.7,2659.6,8.96506708]
[1749056462111,0.75141,2660.4,2660.3,0.7514]
[1749056462312,4.4345,2660.5,2660.4,0.7514]
[1749056463113,0.75143,2660.4,2660.3,0.75141]
[1749056466420,1.9781,2660.5,2660.4,0.7514]
[1749056467407,1.9781,2660.5,2660.2,3.14525]
[1749056467408,0.75143,2660.4,2660.3,0.75141]
[1749056467617,0.75143,2660.3,2660.2,0.75145]
[1749056467919,0.75152,2660.0,2659.9,3.2078]
[1749056468215,0.75152,2660.0,2659.7,1.2666]
[1749056468216,0.75157,2659.8,2659.7,4.536]
[1749056469217,0.75157,2659.8,2659.7,5.2876]
[1749056470622,0.7516,2659.7,2659.6,0.00563708]
[1749056471025,0.81891476,2659.7,2659.6,0.75726708]
[1749056471916,0.75172,2659.3,2659.2,0.599]
[1749056472115,0.7518,2659.0,2658.9,4.536]
[1749056472928,0.7518,2659.0,2658.9,5.28783]
[1749056473129,0.7518,2659.0,2658.9,4.536]
[1749056473924,0.75186,2658.8,2658.7,0.75750708]
[1749056474127,1.63846057,2658.8,2658.7,0.75750708]
[1749056474530,1.63846057,2658.8,2658.7,0.00563708]
[1749056475721,0.88660057,2658.8,2658.7,0.75752708]
[1749056476124,0.88660057,2658.8,2658.7,2.07042708]
[1749056476330,0.88660057,2658.8,2658.7,7.07042708]
[1749056476527,0.00563708,2659.2,2659.1,0.75177]
[1749056476719,0.89040913,2659.2,2659.1,5.28877]
[1749056476923,0.75177,2659.1,2659.0,5.88879]
[1749056477123,1.63654205,2659.1,2659.0,5.137]
[1749056477333,2.27564205,2659.1,2659.0,4.537]
[1749056477724,2.27564205,2659.1,2659.0,5.2888]
[1749056479334,2.27523811,2659.1,2659.0,5.2888]
[1749056481633,0.88436811,2659.1,2659.0,5.2888]
[1749056482436,0.88436811,2659.1,2659.0,10.907]
[1749056482742,0.07295184,2659.2,2659.1,0.75177]
[1749056482932,0.07295184,2659.2,2659.1,5.25997]
[1749056483233,0.89102391,2659.2,2659.1,5.25997]
[1749056483434,0.00563708,2659.2,2659.1,5.25997]
[1749056484426,0.00563708,2659.2,2659.1,9.79797]
[1749056486431,0.75737708,2659.2,2659.1,4.5082]
[1749056486733,0.75737708,2659.2,2659.1,4.538]
[1749056486938,1.64354582,2659.2,2659.1,4.538]
[1749056487535,1.64354582,2659.2,2659.1,5.28977]
[1749056488140,0.75737708,2659.2,2659.1,5.28977]
[1749056488330,1.64418245,2659.2,2659.1,5.28977]
[1749056488534,0.75183,2658.9,2658.8,5.133]
[1749056488735,1.63863537,2658.9,2658.8,5.133]
[1749056489033,1.63863537,2658.9,2658.8,5.88486]
[1749056489540,1.63863537,2658.9,2658.8,5.133]
[1749056490142,0.88680537,2658.9,2658.8,5.88486]
[1749056490437,0.75181,2659.0,2658.9,0.75183]
[1749056490740,1.63868154,2659.0,2658.9,0.75183]
[1749056490940,1.63867154,2659.0,2658.9,0.75183]
[1749056492641,1.63851719,2659.0,2658.9,0.75183]
[1749056493641,0.88671719,2659.0,2658.9,0.75183]
[1749056493839,0.88671719,2659.0,2658.9,2.04363]
[1749056496147,1.63851719,2659.0,2658.9,2.04363]
[1749056496446,0.75183,2658.9,2658.8,5.88484]
[1749056496744,1.63854719,2658.9,2658.8,4.533]
[1749056497049,0.75186,2658.8,2658.7,0.00563708]
[1749056497237,0.88810637,2658.8,2658.7,0.75752708]
[1749056498244,0.88810637,2658.8,2658.7,3.96532708]
[1749056498639,0.88810637,2658.8,2658.7,5.24332708]
[1749056500043,1.63996637,2658.8,2658.7,3.87293708]
[1749056500346,1.63996637,2658.8,2658.7,3.21343708]
[1749056501147,1.63996637,2658.8,2658.7,0.00563708]
[1749056504746,1.63996637,2658.8,2658.7,0.75752708]
[1749056504940,1.63996637,2658.8,2658.7,0.00563708]
[1749056505142,4.84776637,2658.8,2658.7,0.00563708]
[1749056505541,4.84776637,2658.8,2658.4,0.75195]
[1749056505542,0.75203,2658.2,2658.1,3.2078]
[1749056505848,1.64171381,2658.2,2658.1,5.28602]
[1749056506246,0.88968381,2658.2,2657.8,7.7418]
[1749056506447,0.75211,2657.9,2657.8,4.534]
[1749056506645,1.64179381,2657.9,2657.8,5.28614]
[1749056507249,0.88968381,2657.9,2657.8,5.28614]
[1749056508657,0.88968381,2657.9,2657.8,6.59844]
[1749056509360,0.88968381,2657.9,2657.8,2.06444]
[1749056509558,0.88968381,2657.9,2657.8,6.59844]
[1749056510061,0.75211,2658.0,2657.9,0.75209]
[1749056510263,1.63966619,2658.0,2657.9,0.75209]
[1749056510554,0.75214,2657.8,2657.7,4.535]
[1749056510754,1.63969619,2657.8,2657.7,5.28717]
[1749056511455,0.88755619,2657.8,2657.7,5.28717]
[1749056512460,1.63969619,2657.8,2657.7,5.28717]
[1749056512661,1.63969619,2657.8,2657.7,4.535]
[1749056512958,0.88755619,2657.8,2657.7,5.28717]
[1749056513756,1.63969619,2657.8,2657.7,5.28717]
[1749056514257,0.75217,2657.7,2657.6,0.00563708]
[1749056514763,1.63762775,2657.7,2657.6,0.00563708]
[1749056514961,2.94232775,2657.7,2657.6,0.00563708]
[1749056515261,1.63762775,2657.7,2657.6,0.75783708]
[1749056515462,1.63762775,2657.7,2657.6,0.00563708]
[1749056515967,1.63762775,2657.7,2657.6,0.75783708]
[1749056518870,1.63671788,2657.7,2657.6,0.75783708]
[1749056521573,1.63681294,2657.7,2657.6,0.75783708]
[1749056521873,0.88464294,2657.7,2657.6,0.75783708]
[1749056522267,0.88464294,2657.7,2657.6,1.40633708]
[1749056522464,0.88464294,2657.7,2657.6,0.75783708]
[1749056522668,1.63681294,2657.7,2657.6,0.75783708]
[1749056522868,1.63681294,2657.7,2657.6,0.00563708]
[1749056523075,1.63681294,2657.7,2657.6,0.75783708]
[1749056523574,0.88464294,2657.7,2657.6,0.75783708]
[1749056523980,0.88464294,2657.7,2657.6,2.01503708]
[1749056524278,1.63681294,2657.7,2657.6,2.01503708]
[1749056525073,0.88464294,2657.7,2657.6,2.01503708]
[1749056525878,1.41164,2657.9,2657.8,0.75214]
[1749056526081,2.29656527,2657.9,2657.8,0.75214]
[1749056526879,0.75214,2657.8,2657.7,1.39005]
[1749056527082,1.63706527,2657.8,2657.7,1.39005]
[1749056530291,0.75214,2657.8,2657.7,1.39005]
[1749056530491,1.63748423,2657.8,2657.7,1.39005]
[1749056532386,1.63748423,2657.8,2657.7,0.6379]
[1749056532586,0.75217,2657.7,2657.6,0.75783708]
[1749056532786,2.24731423,2657.7,2657.6,0.75783708]
[1749056534793,2.24975721,2657.7,2657.6,0.75783708]
[1749056534994,2.24975721,2657.7,2657.6,0.00563708]
[1749056535689,3.48695721,2657.7,2657.6,0.00563708]
[1749056535989,1.8806,2657.5,2657.0,0.75235]
[1749056536187,0.75237,2657.1,2657.0,0.75235]
[1749056536383,1.64015721,2657.1,2657.0,0.75235]
[1749056536694,0.88778721,2657.1,2657.0,0.75235]
[1749056537594,1.64012721,2657.1,2657.0,0.75235]
[1749056537990,0.88778721,2657.1,2657.0,0.75235]
[1749056538687,0.88778721,2657.1,2657.0,2.03005]
[1749056538885,0.88778721,2657.1,2657.0,5.23785]
[1749056539194,0.00563708,2657.3,2657.2,0.75231]
[1749056539393,0.6357,2657.9,2657.8,0.75214]
[1749056539601,1.52383032,2657.9,2657.8,0.75214]
[1749056539988,0.88813032,2657.9,2657.8,0.75214]
[1749056540187,0.88813032,2657.9,2657.8,2.00564]
[1749056541396,0.88813032,2657.9,2657.8,24.36964]
[1749056541397,0.87121908,2657.9,2657.8,24.36964]
[1749056542892,0.00563708,2658.1,2658.0,0.75208]
[1749056543094,0.00563708,2658.1,2658.0,3.95988]
[1749056543598,0.00563708,2658.1,2658.0,4.57338]
[1749056543800,0.00563708,2658.1,2658.0,7.7408]
[1749056543997,0.00563708,2658.1,2658.0,8.49288]
[1749056544500,0.75769708,2658.1,2658.0,8.49288]
[1749056544697,0.00563708,2658.1,2658.0,8.49288]
[1749056552103,0.00563708,2658.1,2658.0,13.49288]
[1749056553409,0.00563708,2658.1,2658.0,14.79808]
[1749056554213,0.89283932,2658.1,2658.0,14.79808]
[1749056555306,0.89283932,2658.1,2658.0,5.26508]
[1749056555612,0.89283932,2658.1,2658.0,8.48788]
[1749056555613,1.64489932,2658.1,2658.0,8.48788]
[1749056556211,0.89283932,2658.1,2658.0,8.48788]
[1749056556712,0.89300646,2658.1,2658.0,8.48788]
[1749056557714,1.64506646,2658.1,2658.0,4.528]
[1749056558016,2.87126646,2658.1,2658.0,5.28008]
[1749056558512,1.88026,2658.0,2657.7,4.528]
[1749056558719,0.75214,2657.8,2657.7,5.28016]
[1749056558909,1.63950938,2657.8,2657.7,5.28016]
[1749056559103,2.23740938,2657.8,2657.7,5.28016]
[1749056559515,1.48526938,2657.8,2657.7,5.28016]
[1749056560216,0.88736938,2657.8,2657.7,5.28016]
[1749056561010,0.75211,2657.9,2657.7,4.528]
[1749056561314,0.75211,2657.9,2657.8,0.75214]
[1749056561611,0.7521,2658.0,2657.9,0.75211]
[1749056561817,0.88679379,2658.0,2657.9,0.75211]
[1749056562317,1.63887379,2658.0,2657.9,0.75211]
[1749056563011,0.88679379,2658.0,2657.9,0.75211]
[1749056563316,1.63887379,2658.0,2657.9,0.75211]
[1749056565213,0.88679379,2658.0,2657.9,0.75211]
[1749056565413,1.63887379,2658.0,2657.9,0.75211]
[1749056565617,1.63900019,2658.0,2657.9,0.75211]
[1749056566011,0.88692019,2658.0,2657.9,0.75211]
[1749056566211,1.63900019,2658.0,2657.9,0.75211]
[1749056566712,0.88692019,2658.0,2657.9,0.75211]
[1749056567322,1.63900019,2658.0,2657.9,0.75211]
[1749056567710,2.83820019,2658.0,2657.9,0.75211]
[1749056568318,0.88692019,2658.0,2657.9,0.75211]
[1749056568920,1.63900019,2658.0,2657.9,0.75211]
[1749056569121,0.75214,2657.8,2657.7,4.528]
[1749056569327,1.63906019,2657.8,2657.7,4.528]
[1749056569518,0.75222,2657.6,2657.4,4.529]
[1749056569819,2.23824019,2657.5,2657.4,5.28125]
[1749056570020,2.2392612,2657.5,2657.4,5.28125]
[1749056570614,2.2392612,2657.5,2657.4,0.75225]
[1749056570821,0.75231,2657.3,2657.2,0.75228]
[1749056571124,0.88752619,2657.4,2657.1,7.00503]
[1749056571320,0.88752619,2657.3,2657.2,0.75231]
[1749056573316,0.88752619,2657.3,2657.2,5.28131]
[1749056574325,0.88752619,2657.3,2657.2,0.75231]
[1749056574524,0.88752619,2657.3,2657.2,4.529]
[1749056575519,1.63980619,2657.3,2657.2,5.28131]
[1749056575826,1.63980619,2657.3,2657.2,4.529]
[1749056577125,1.63980619,2657.3,2657.2,5.28131]
[1749056577326,0.88752619,2657.3,2657.2,5.28131]
[1749056578522,1.63980619,2657.3,2657.2,5.28131]
[1749056578720,0.75234,2657.2,2657.1,0.75232]
[1749056578922,0.88641025,2657.2,2657.1,0.75232]
[1749056579124,1.63871025,2657.3,2657.2,0.75231]
[1749056579324,1.63891086,2657.3,2657.2,0.75231]
[1749056581133,0.88661086,2657.3,2657.2,0.75231]
[1749056581542,0.5991,2657.5,2657.4,0.75225]
[1749056581833,0.88603736,2657.5,2657.4,0.75225]
[1749056582026,3.21343708,2658.1,2657.8,0.75214]
[1749056582233,0.00563708,2658.1,2658.0,0.75208]
[1749056582421,0.00563708,2658.1,2658.0,3.95988]
[1749056582628,0.00563708,2658.1,2658.0,5.26388]
[1749056584433,0.00563708,2658.1,2658.0,10.26388]
[1749056586423,0.00563708,2658.1,2658.0,5.26388]
[1749056592331,0.00563708,2658.1,2658.0,22.61288]
[1749056594528,0.00563708,2658.1,2658.0,27.61288]
[1749056597343,0.00563708,2658.1,2658.0,22.61288]
[1749056599340,0.00563708,2658.1,2658.0,5.26388]
[1749056599536,0.00563708,2658.1,2658.0,3.95988]
[1749056599841,0.88669393,2658.1,2658.0,0.75208]
[1749056601138,0.88669393,2658.1,2658.0,3.95988]
[1749056603041,0.88713109,2658.1,2658.0,3.95988]
[1749056603549,0.88722386,2658.1,2658.0,3.95988]
[1749056604848,0.88722386,2658.1,2657.9,4.526]
[1749056604849,0.75208,2658.0,2657.9,4.526]
[1749056605149,2.93236678,2658.0,2657.9,4.526]
[1749056605345,2.18028678,2658.0,2657.7,0.75215]
[1749056605650,0.75216,2657.8,2657.7,0.75215]
[1749056605852,1.63374678,2657.8,2657.7,0.75215]
[1749056606147,2.78898678,2657.8,2657.7,0.75215]
[1749056607950,2.79024095,2657.8,2657.7,0.75215]
[1749056610157,9.5e-07,2657.8,2657.7,3.95995]
[1749056610350,9.5e-07,2657.8,2657.7,5.81695]
[1749056610748,9.5e-07,2657.8,2657.7,4.61465]
[1749056610948,9.5e-07,2657.8,2657.7,3.95995]
[1749056615164,9.5e-07,2657.8,2657.7,8.48095]
[1749056616866,1.2377,2658.0,2657.9,0.75211]
[1749056617055,1.8745,2658.0,2657.9,0.75211]
[1749056618068,2.62658,2658.0,2657.9,0.75211]
[1749056618365,0.75214,2657.8,2657.7,3.2078]
[1749056618572,3.75472,2658.0,2657.4,3.2078]
[1749056618868,1.88053,2657.6,2657.1,3.2078]
[1749056619066,0.75231,2657.2,2657.1,3.2078]
[1749056619267,0.7523,2657.3,2657.2,0.75231]
[1749056619569,2.5937,2657.5,2657.1,3.96011]
[1749056619771,0.75231,2657.2,2657.1,3.96011]
[1749056619967,0.7523,2657.3,2657.2,0.75229]
[1749056621569,0.75226,2657.4,2657.3,0.75225]
[1749056621758,2.04156,2657.4,2657.3,0.75225]
[1749056622169,2.92038468,2657.4,2657.3,0.75225]
[1749056622862,0.75231,2657.3,2657.2,0.75229]
[1749056623058,2.92043468,2657.3,2657.2,0.75229]
[1749056624963,0.75233,2657.2,2657.1,0.75232]
[1749056625165,0.75239,2656.9,2656.8,3.96584708]
[1749056625370,0.75239,2657.0,2656.9,0.75239]
[1749056625672,0.6019,2657.1,2657.0,0.75237]
[1749056625973,1.47991257,2657.1,2657.0,0.75237]
[1749056626371,0.87801257,2657.1,2657.0,5.27437]
[1749056626672,0.87801257,2657.1,2657.0,6.48977]
[1749056628178,1.63035257,2657.1,2657.0,4.522]
[1749056628471,0.75239,2657.0,2656.9,0.75239]
[1749056628670,2.22640257,2657.0,2656.9,0.75239]
[1749056629072,0.75239,2656.9,2656.8,3.21343708]
[1749056629273,2.25470257,2656.9,2656.8,3.21343708]
[1749056629575,2.25470257,2656.9,2656.8,0.00563708]
[1749056629874,0.75251,2656.5,2656.4,4.523]
[1749056630175,1.62995057,2656.5,2656.4,4.523]
[1749056631074,1.62995057,2656.5,2656.4,5.27554]
[1749056632173,0.87744057,2656.5,2656.2,3.82273708]
[1749056632374,0.75253,2656.5,2656.4,0.75254]
[1749056632575,1.62954748,2656.5,2656.4,0.75254]
[1749056633875,0.87701748,2656.5,2656.2,3.82273708]
[1749056634072,1.53431748,2656.4,2656.3,0.75256]
[1749056634276,0.75256,2656.3,2656.2,0.00563708]
[1749056634470,1.62957748,2656.3,2656.2,0.75822708]
[1749056634779,1.62957748,2656.3,2656.2,0.00563708]
[1749056635080,1.62957748,2656.3,2655.7,1.3176]
[1749056635081,0.75269,2655.9,2655.7,1.3176]
[1749056635380,0.75269,2655.9,2655.6,3.2078]
[1749056635381,0.87641262,2655.8,2655.6,3.8071]
[1749056635582,0.87641262,2655.7,2655.6,4.55986]
[1749056636079,1.41,2655.9,2655.8,0.75271]
[1749056636382,2.28536184,2655.9,2655.8,0.75271]
[1749056638679,2.28437473,2655.9,2655.8,0.75271]
[1749056639585,1.53167473,2655.9,2655.6,3.2078]
[1749056639884,0.75273,2655.7,2655.6,3.96055]
[1749056640083,0.87437473,2655.7,2655.6,3.96055]
[1749056640487,0.75279,2655.5,2655.4,0.00564802]
[1749056640784,0.75279,2655.5,2655.4,0.75846802]
[1749056640986,1.62693529,2655.5,2655.4,0.75846802]
[1749056641287,0.87414529,2655.5,2655.4,0.75846802]
[1749056641679,0.75279,2655.6,2655.5,0.75279]
[1749056641882,1.62608706,2655.6,2655.5,0.75279]
[1749056642280,0.87329706,2655.6,2655.5,0.75279]
[1749056642481,1.40999,2655.9,2655.8,0.75271]
[1749056642678,2.28278752,2655.9,2655.8,0.75271]
[1749056642885,0.87279752,2655.9,2655.8,0.75271]
[1749056643586,1.62547752,2655.9,2655.8,0.75271]
[1749056644988,0.87279752,2655.9,2655.8,0.75271]
[1749056645299,1.62547752,2655.9,2655.8,0.75271]
[1749056646090,0.75268,2655.9,2655.8,0.75271]
[1749056646290,1.62624181,2655.9,2655.8,0.75271]
[1749056646787,0.87356181,2655.9,2655.8,0.75271]
[1749056647285,1.62624181,2655.9,2655.8,2.00671]
[1749056647584,0.87356181,2655.9,2655.6,3.2078]
[1749056647786,0.75276,2655.6,2655.5,5.27477]
[1749056647982,1.62632181,2655.6,2655.5,0.75277]
[1749056649389,0.87356181,2655.6,2655.5,0.75277]
[1749056650188,1.62632181,2655.6,2655.5,0.75277]
[1749056650492,0.75276,2655.6,2655.5,0.75277]
[1749056650695,0.87476266,2655.6,2655.5,0.75277]
[1749056651095,0.87476266,2655.6,2655.5,1.98747]
[1749056651598,1.62752266,2655.6,2655.5,1.98747]
[1749056651797,0.87476266,2655.6,2655.5,1.98747]
[1749056652290,3.2078,2656.5,2655.5,13.20647]
[1749056652494,0.87500115,2656.4,2655.9,1.8817]
[1749056652698,0.75262,2656.1,2656.0,0.651]
[1749056652891,0.75262,2656.1,2655.6,5.1343]
[1749056652892,2.75658115,2656.1,2655.7,0.75271]
[1749056653089,0.75272,2655.8,2655.7,0.75271]
[1749056653290,1.62772115,2655.8,2655.7,0.75271]
[1749056653595,0.75273,2655.7,2655.6,5.7828]
[1749056653900,0.87423675,2655.7,2655.6,5.27576]
[1749056654099,0.87423675,2655.7,2655.6,6.53556]
[1749056654792,0.6314,2655.9,2655.8,0.75271]
[1749056654993,1.50588071,2655.9,2655.8,0.75271]
[1749056655690,0.87448071,2655.9,2655.8,3.96051]
[1749056656397,0.87448071,2655.9,2655.8,4.61361]
[1749056657095,0.87448071,2655.9,2655.8,9.61361]
[1749056657501,0.87448071,2655.9,2655.8,4.61361]
[1749056658093,0.87448071,2655.9,2655.8,3.96051]
[1749056660597,0.87448071,2655.9,2655.8,4.02782476]
[1749056661900,0.87448071,2655.9,2655.8,3.96051]
[1749056662695,0.87448071,2655.9,2655.8,4.02782476]
[1749056663200,1.88135,2656.4,2656.1,0.75262]
[1749056663401,0.75264,2656.1,2656.0,0.75264]
[1749056663601,1.63070454,2656.1,2656.0,0.75264]
[1749056663907,1.6309241,2656.1,2656.0,0.75264]
[1749056664403,0.8782841,2656.1,2656.0,0.75264]
[1749056666207,0.8782841,2656.1,2656.0,2.02324]
[1749056666902,1.6309041,2656.1,2656.0,2.02324]
[1749056667105,1.6309041,2656.1,2656.0,0.75264]
[1749056667311,0.75268,2655.9,2655.8,3.96047]
[1749056667602,1.6309641,2655.9,2655.8,3.96047]
[1749056667813,0.8782841,2655.9,2655.8,3.96047]
[1749056668012,1.6309641,2655.9,2655.8,3.96047]
[1749056668211,2.01177,2656.0,2655.9,0.75268]
[1749056668405,2.89029731,2656.0,2655.9,0.75268]
[1749056669013,2.13762731,2656.0,2655.7,4.523]
[1749056669212,0.75271,2655.8,2655.7,5.2757]
[1749056669412,1.63123731,2655.8,2655.7,5.2757]
[1749056671716,1.63123731,2655.8,2655.7,0.7527]
[1749056672608,0.75271,2655.8,2655.7,0.7527]
[1749056672811,0.75271,2655.8,2655.4,7.73444802]
[1749056672812,0.75279,2655.5,2655.4,7.73444802]
[1749056673014,1.63131425,2655.5,2655.4,8.48726802]
[1749056673713,0.87852425,2655.5,2655.4,8.48726802]
[1749056674615,1.63131425,2655.5,2655.4,8.48726802]
[1749056675116,1.63131425,2655.5,2655.4,7.73444802]
[1749056675708,1.63131425,2655.5,2655.4,8.48726802]
[1749056675915,1.63131425,2655.5,2655.4,7.73444802]
[1749056676311,1.63131425,2655.5,2655.4,8.48726802]
[1749056676615,1.63131425,2655.5,2655.4,0.00564802]
[1749056676816,0.75296,2654.9,2654.8,5.1731]
[1749056677022,1.63106136,2654.9,2654.8,5.1731]
[1749056677213,1.63106136,2654.9,2654.8,4.521]
[1749056677918,1.63106136,2654.9,2654.8,5.27399]
[1749056678815,1.63106136,2654.9,2654.8,0.75299]
[1749056679816,0.75299,2654.8,2654.7,3.9608]
[1749056680016,1.63109136,2654.8,2654.7,3.9608]
[1749056681125,0.87810136,2654.8,2654.7,3.9608]
[1749056681326,0.75298,2654.9,2654.8,0.75299]
[1749056681522,0.75299,2654.8,2654.7,3.9608]
[1749056681723,1.62848267,2654.8,2654.7,3.9608]
[1749056682120,0.87549267,2654.8,2654.7,3.9608]
[1749056682925,1.62848267,2654.8,2654.7,3.9608]
[1749056683326,0.87549267,2654.8,2654.7,3.9608]
[1749056683627,1.62848267,2654.8,2654.7,3.9608]
[1749056683829,0.87549267,2654.8,2654.7,3.9608]
[1749056684127,0.00564802,2655.1,2655.0,0.75293]
[1749056684322,0.87972849,2655.1,2655.0,0.75293]
[1749056684519,0.87967242,2655.1,2655.0,3.96073]
[1749056684721,0.87967242,2655.1,2655.0,5.80593]
[1749056685828,0.87973262,2655.1,2655.0,5.80593]
[1749056686227,0.87973262,2655.1,2655.0,6.42893]
[1749056686531,0.00564802,2655.1,2655.0,6.42893]
[1749056686924,0.00564802,2655.1,2655.0,10.95093]
[1749056687223,0.87974194,2655.1,2655.0,10.95093]
[1749056687425,0.87974194,2655.1,2655.0,10.32793]
[1749056688725,0.87974194,2655.1,2655.0,9.11143]
[1749056689727,1.63264194,2655.1,2655.0,7.7298]
[1749056689933,1.63264194,2655.1,2655.0,4.522]
[1749056690127,1.63268876,2655.1,2655.0,4.58931476]
[1749056690543,1.63268876,2655.1,2655.0,5.34224476]
[1749056690839,1.63268876,2655.1,2655.0,4.58931476]
[1749056691237,1.63268876,2655.1,2655.0,5.34224476]
[1749056691945,1.63268876,2655.1,2655.0,4.58931476]
[1749056692142,1.63276321,2655.1,2655.0,0.06731476]
[1749056692348,2.82966321,2655.1,2655.0,0.06731476]
[1749056694048,1.95544802,2655.1,2655.0,0.06731476]
[1749056694950,2.82988552,2655.1,2655.0,0.82024476]
[1749056695950,1.63298552,2655.1,2655.0,0.82024476]
[1749056696551,0.88008552,2655.1,2655.0,0.82024476]
[1749056697249,1.63298552,2655.1,2655.0,0.82024476]
[1749056699257,1.63396378,2655.1,2655.0,0.82024476]
[1749056700361,1.63396378,2655.1,2655.0,0.06731476]
[1749056701158,2.88116378,2655.1,2655.0,0.06731476]
[1749056702153,6.09015438,2655.1,2655.0,0.06731476]
[1749056706457,5.21354802,2655.1,2655.0,0.06731476]
[1749056706665,6.09148321,2655.1,2655.0,0.06731476]
[1749056707059,4.84428321,2655.1,2655.0,0.06731476]
[1749056707762,6.06388321,2655.1,2655.0,0.06731476]
[1749056710869,4.84428321,2655.1,2655.0,0.06731476]
[1749056711071,4.84340557,2655.1,2655.0,0.06731476]
[1749056715377,4.84322065,2655.1,2655.0,0.06731476]
[1749056720075,4.84374565,2655.1,2655.0,0.06731476]
[1749056721180,0.75299,2654.8,2654.7,1.2766]
[1749056721376,0.75302,2654.7,2654.6,0.6118]
[1749056721582,1.63041763,2654.7,2654.6,0.6118]
[1749056721987,2.75997763,2654.7,2654.2,0.6186]
[1749056722280,0.75319,2654.1,2654.0,1.28]
[1749056722481,1.63058763,2654.1,2654.0,1.28]
[1749056722681,0.87739763,2654.1,2654.0,10.24102]
[1749056722871,0.79316069,2654.1,2654.0,10.24102]
[1749056723077,0.75298,2654.9,2654.5,1.88267]
[1749056723279,2.98796084,2655.7,2655.1,1.88223]
[1749056723577,0.6259,2656.4,2655.6,5.08967]
[1749056723878,0.6259,2656.4,2656.2,3.2078]
[1749056724179,0.75255,2656.4,2656.2,8.48138]
[1749056724379,0.75255,2656.4,2656.3,1.28]
[1749056724983,0.75256,2656.3,2656.2,7.7288]
[1749056726184,0.75262,2656.1,2656.0,0.00564802]
[1749056727677,1.95542,2656.1,2656.0,0.00564802]
[1749056728579,2.59852,2656.1,2656.0,0.00564802]